[Event "Titled Tuesday Blitz June 20 Early 2023"]
[White "Ljukin, Sergei"]
[Black "Florescu, Codrut-Constantin"]
[WhiteFideId "14102200"]
[BlackFideId "1202200"]
[WhiteElo "2312"]
[BlackElo "2191"]
[Result "1-0"]
[Round "6"]
[TimeControl "180+2"]
[Date "2023.06.20"]
[WhiteClock "0:00:06"]
[BlackClock "0:00:14"]
[Board "78"]

1. e4 {[%clk 0:02:56]}  c5 {[%clk 0:03:00]} 2. Nf3 {[%clk 0:02:56]}  e6 {[%clk 0:03:00]} 3. d4 {[%clk 0:02:55]}  cxd4 {[%clk 0:03:00]} 4. Nxd4 {[%clk 0:02:55]}  a6 {[%clk 0:03:01]} 5. Bd3 {[%clk 0:02:55]}  Bc5 {[%clk 0:03:00]} 6. Nb3 {[%clk 0:02:54]}  Ba7 {[%clk 0:03:01]} 7. c4 {[%clk 0:02:54]}  Ne7 {[%clk 0:03:00]} 8. Nc3 {[%clk 0:02:53]}  Nbc6 {[%clk 0:03:00]} 9. Bf4 {[%clk 0:02:43]}  d5 {[%clk 0:02:53]} 10. cxd5 {[%clk 0:02:22]}  exd5 {[%clk 0:02:53]} 11. exd5 {[%clk 0:01:53]}  Nxd5 {[%clk 0:02:52]} 12. Qe2+ {[%clk 0:01:47]}  Be6 {[%clk 0:02:51]} 13. Nxd5 {[%clk 0:01:47]}  Qxd5 {[%clk 0:02:51]} 14. O-O-O {[%clk 0:01:41]}  Rc8 {[%clk 0:02:30]} 15. Kb1 {[%clk 0:01:39]}  Nd4 {[%clk 0:02:30]} 16. Qe4 {[%clk 0:01:18]}  Nxb3 {[%clk 0:02:23]} 17. Qxd5 {[%clk 0:01:15]}  Bxd5 {[%clk 0:02:23]} 18. axb3 {[%clk 0:01:15]}  Bxb3 {[%clk 0:02:22]} 19. Rhe1+ {[%clk 0:01:01]}  Be6 {[%clk 0:02:21]} 20. Bf5 {[%clk 0:00:48]}  O-O {[%clk 0:02:20]} 21. Rxe6 {[%clk 0:00:48]}  fxe6 {[%clk 0:02:21]} 22. Bxe6+ {[%clk 0:00:48]}  Kh8 {[%clk 0:02:19]} 23. Bxc8 {[%clk 0:00:48]}  Rxc8 {[%clk 0:02:16]} 24. f3 {[%clk 0:00:32]}  Bc5 {[%clk 0:02:03]} 25. Rd7 {[%clk 0:00:31]}  b6 {[%clk 0:02:03]} 26. Be5 {[%clk 0:00:29]}  Rg8 {[%clk 0:02:02]} 27. f4 {[%clk 0:00:28]}  h6 {[%clk 0:02:01]} 28. g4 {[%clk 0:00:28]}  a5 {[%clk 0:01:46]} 29. f5 {[%clk 0:00:28]}  Kh7 {[%clk 0:01:06]} 30. f6 {[%clk 0:00:19]}  Kg6 {[%clk 0:01:06]} 31. Rxg7+ {[%clk 0:00:17]}  Rxg7 {[%clk 0:01:06]} 32. fxg7 {[%clk 0:00:17]}  Kh7 {[%clk 0:01:06]} 33. Kc2 {[%clk 0:00:14]}  b5 {[%clk 0:01:06]} 34. Kd3 {[%clk 0:00:13]}  a4 {[%clk 0:01:06]} 35. h4 {[%clk 0:00:12]}  Be7 {[%clk 0:01:04]} 36. h5 {[%clk 0:00:11]}  Kg8 {[%clk 0:00:59]} 37. Ke4 {[%clk 0:00:11]}  Kf7 {[%clk 0:00:59]} 38. Kf5 {[%clk 0:00:09]}  b4 {[%clk 0:00:57]} 39. Ke4 {[%clk 0:00:06]}  a3 {[%clk 0:00:51]} 40. bxa3 {[%clk 0:00:06]}  bxa3 {[%clk 0:00:52]} 41. Kd3 {[%clk 0:00:06]}  a2 {[%clk 0:00:50]} 42. Kc2 {[%clk 0:00:06]}  Bd6 {[%clk 0:00:41]} 43. Ba1 {[%clk 0:00:05]}  Be7 {[%clk 0:00:40]} 44. Kb3 {[%clk 0:00:04]}  Bg5 {[%clk 0:00:32]} 45. Kxa2 {[%clk 0:00:04]}  Bd2 {[%clk 0:00:31]} 46. Kb3 {[%clk 0:00:04]}  Bg5 {[%clk 0:00:31]} 47. Kc4 {[%clk 0:00:04]}  Bd2 {[%clk 0:00:30]} 48. Kd5 {[%clk 0:00:05]}  Bg5 {[%clk 0:00:30]} 49. Ke4 {[%clk 0:00:05]}  Bc1 {[%clk 0:00:30]} 50. Kf5 {[%clk 0:00:06]}  Bg5 {[%clk 0:00:30]} 51. Bb2 {[%clk 0:00:05]}  Bd2 {[%clk 0:00:28]} 52. Bf6 {[%clk 0:00:05]}  Be3 {[%clk 0:00:28]} 53. g5 {[%clk 0:00:06]}  Bxg5 {[%clk 0:00:27]} 54. Bxg5 {[%clk 0:00:05]}  hxg5 {[%clk 0:00:27]} 55. h6 {[%clk 0:00:06]}  g4 {[%clk 0:00:15]} 56. Kxg4 {[%clk 0:00:06]}  Kg8 {[%clk 0:00:15]} 57. Kf5 {[%clk 0:00:06]}  Kh7 {[%clk 0:00:15]} 58. Ke6 {[%clk 0:00:06]}  Kg8 {[%clk 0:00:15]} 59. Ke7 {[%clk 0:00:06]}  Kh7 {[%clk 0:00:14]} 60. Kf7 {[%clk 0:00:06]} 1-0


[Site "https://www.chess.com"]

[Event "Titled Tuesday Blitz June 20 Early 2023"]
[White "Rohde, Michael"]
[Black "Koshulyan, Egor A."]
[WhiteFideId "2000172"]
[BlackFideId "24237000"]
[WhiteElo "2274"]
[BlackElo "2216"]
[Result "0-1"]
[Round "6"]
[TimeControl "180+2"]
[Date "2023.06.20"]
[WhiteClock "0:00:00"]
[BlackClock "0:01:00"]
[Board "80"]

1. d4 {[%clk 0:02:51]}  Nf6 {[%clk 0:02:59]} 2. Nf3 {[%clk 0:02:49]}  d5 {[%clk 0:02:59]} 3. c4 {[%clk 0:02:48]}  e6 {[%clk 0:03:00]} 4. Nc3 {[%clk 0:02:47]}  c6 {[%clk 0:03:00]} 5. e3 {[%clk 0:02:43]}  Nbd7 {[%clk 0:03:00]} 6. a3 {[%clk 0:02:44]}  Bd6 {[%clk 0:02:56]} 7. Bd3 {[%clk 0:02:43]}  dxc4 {[%clk 0:02:54]} 8. Bxc4 {[%clk 0:02:41]}  b5 {[%clk 0:02:55]} 9. Ba2 {[%clk 0:02:40]}  Bb7 {[%clk 0:02:55]} 10. O-O {[%clk 0:02:27]}  O-O {[%clk 0:02:52]} 11. h3 {[%clk 0:02:19]}  a5 {[%clk 0:02:50]} 12. e4 {[%clk 0:02:06]}  e5 {[%clk 0:02:45]} 13. Be3 {[%clk 0:01:45]}  b4 {[%clk 0:02:43]} 14. Na4 {[%clk 0:01:42]}  Nxe4 {[%clk 0:02:39]} 15. Qc2 {[%clk 0:01:28]}  Nef6 {[%clk 0:02:36]} 16. dxe5 {[%clk 0:01:24]}  Nxe5 {[%clk 0:02:37]} 17. Nxe5 {[%clk 0:01:21]}  Bxe5 {[%clk 0:02:38]} 18. Rad1 {[%clk 0:01:18]}  Qc7 {[%clk 0:02:37]} 19. Bb6 {[%clk 0:01:13]}  Qb8 {[%clk 0:02:27]} 20. axb4 {[%clk 0:00:58]}  axb4 {[%clk 0:02:23]} 21. Bc5 {[%clk 0:00:57]}  Re8 {[%clk 0:02:24]} 22. Bc4 {[%clk 0:00:40]}  Ba6 {[%clk 0:02:19]} 23. Nb6 {[%clk 0:00:35]}  Bxc4 {[%clk 0:02:15]} 24. Nxc4 {[%clk 0:00:27]}  Bc7 {[%clk 0:02:14]} 25. Qb3 {[%clk 0:00:22]}  Nd5 {[%clk 0:02:03]} 26. Ne3 {[%clk 0:00:20]}  Nf6 {[%clk 0:01:54]} 27. Qxb4 {[%clk 0:00:18]}  Be5 {[%clk 0:01:55]} 28. Qxb8 {[%clk 0:00:16]}  Raxb8 {[%clk 0:01:56]} 29. b4 {[%clk 0:00:15]}  Ne4 {[%clk 0:01:55]} 30. Nc4 {[%clk 0:00:13]}  Bc3 {[%clk 0:01:51]} 31. Nd6 {[%clk 0:00:11]}  Nxd6 {[%clk 0:01:48]} 32. Rxd6 {[%clk 0:00:11]}  Rec8 {[%clk 0:01:46]} 33. Rc1 {[%clk 0:00:08]}  Be5 {[%clk 0:01:43]} 34. Rd7 {[%clk 0:00:08]}  g6 {[%clk 0:01:36]} 35. Re1 {[%clk 0:00:07]}  Bf6 {[%clk 0:01:34]} 36. g3 {[%clk 0:00:06]}  Kg7 {[%clk 0:01:32]} 37. Kg2 {[%clk 0:00:06]}  Ra8 {[%clk 0:01:29]} 38. h4 {[%clk 0:00:05]}  h5 {[%clk 0:01:29]} 39. Rb7 {[%clk 0:00:05]}  Rab8 {[%clk 0:01:15]} 40. Rxb8 {[%clk 0:00:04]}  Rxb8 {[%clk 0:01:16]} 41. Rd1 {[%clk 0:00:03]}  Bc3 {[%clk 0:01:16]} 42. Rd6 {[%clk 0:00:03]}  Rc8 {[%clk 0:01:11]} 43. Bd4+ {[%clk 0:00:03]}  Bxd4 {[%clk 0:01:11]} 44. Rxd4 {[%clk 0:00:04]}  Kf6 {[%clk 0:01:11]} 45. Rc4 {[%clk 0:00:04]}  Ke7 {[%clk 0:01:07]} 46. Kf3 {[%clk 0:00:04]}  Kd6 {[%clk 0:01:06]} 47. Kf4 {[%clk 0:00:04]}  Re8 {[%clk 0:00:59]} 48. Kg5 {[%clk 0:00:02]}  Re5+ {[%clk 0:01:00]} 49. Kf6 {[%clk 0:00:01]}  Rf5+ {[%clk 0:01:00]} 50. Kg7 {[%clk 0:00:00]}  Rxf2 {[%clk 0:01:00]} 0-1


[Site "https://www.chess.com"]

[Event "Titled Tuesday Blitz June 20 Early 2023"]
[White "Moskvin, Anatoly"]
[Black "Bauman_Guy"]
[WhiteFideId "24199990"]
[WhiteElo "2104"]
[BlackElo "2650"]
[Result "1/2-1/2"]
[Round "6"]
[TimeControl "180+2"]
[Date "2023.06.20"]
[WhiteClock "0:00:20"]
[BlackClock "0:01:01"]
[Board "84"]

1. e4 {[%clk 0:03:00]}  c5 {[%clk 0:03:00]} 2. Nc3 {[%clk 0:03:01]}  e6 {[%clk 0:02:59]} 3. Nge2 {[%clk 0:03:00]}  Nc6 {[%clk 0:02:59]} 4. g3 {[%clk 0:03:00]}  Nf6 {[%clk 0:03:00]} 5. Bg2 {[%clk 0:03:01]}  d5 {[%clk 0:03:00]} 6. exd5 {[%clk 0:03:01]}  exd5 {[%clk 0:03:00]} 7. d4 {[%clk 0:03:01]}  Bg4 {[%clk 0:03:01]} 8. Be3 {[%clk 0:02:47]}  cxd4 {[%clk 0:02:55]} 9. Bxd4 {[%clk 0:02:47]}  Bb4 {[%clk 0:02:51]} 10. O-O {[%clk 0:02:44]}  O-O {[%clk 0:02:50]} 11. Bxf6 {[%clk 0:02:18]}  Qxf6 {[%clk 0:02:48]} 12. Nxd5 {[%clk 0:02:19]}  Qxb2 {[%clk 0:02:46]} 13. h3 {[%clk 0:02:11]}  Bh5 {[%clk 0:02:26]} 14. Rb1 {[%clk 0:01:22]}  Qa3 {[%clk 0:02:24]} 15. Rb3 {[%clk 0:00:49]}  Qa5 {[%clk 0:02:23]} 16. g4 {[%clk 0:00:49]}  Bg6 {[%clk 0:02:22]} 17. Nxb4 {[%clk 0:00:50]}  Nxb4 {[%clk 0:02:21]} 18. Qe1 {[%clk 0:00:51]}  Nc6 {[%clk 0:02:19]} 19. Rxb7 {[%clk 0:00:51]}  Qa6 {[%clk 0:02:14]} 20. Rc7 {[%clk 0:00:49]}  Rac8 {[%clk 0:02:14]} 21. Rxc8 {[%clk 0:00:43]}  Rxc8 {[%clk 0:02:14]} 22. Qc3 {[%clk 0:00:43]}  Qxe2 {[%clk 0:02:03]} 23. Re1 {[%clk 0:00:43]}  Qxc2 {[%clk 0:01:51]} 24. Qxc2 {[%clk 0:00:43]}  Bxc2 {[%clk 0:01:51]} 25. Bxc6 {[%clk 0:00:44]}  Kf8 {[%clk 0:01:45]} 26. Bd5 {[%clk 0:00:45]}  Rc7 {[%clk 0:01:39]} 27. Rc1 {[%clk 0:00:45]}  Rd7 {[%clk 0:01:26]} 28. Bxf7 {[%clk 0:00:39]}  Kxf7 {[%clk 0:01:21]} 29. Rxc2 {[%clk 0:00:39]}  h5 {[%clk 0:01:21]} 30. Kg2 {[%clk 0:00:38]}  hxg4 {[%clk 0:01:22]} 31. hxg4 {[%clk 0:00:39]}  Kg6 {[%clk 0:01:17]} 32. Rc6+ {[%clk 0:00:39]}  Kg5 {[%clk 0:01:16]} 33. Kg3 {[%clk 0:00:38]}  Rd3+ {[%clk 0:01:15]} 34. f3 {[%clk 0:00:38]}  Ra3 {[%clk 0:01:15]} 35. Rc5+ {[%clk 0:00:38]}  Kh6 {[%clk 0:01:14]} 36. Rc2 {[%clk 0:00:39]}  g5 {[%clk 0:01:12]} 37. Kf2 {[%clk 0:00:34]}  Kg6 {[%clk 0:01:12]} 38. Ke2 {[%clk 0:00:35]}  Kf6 {[%clk 0:01:13]} 39. Kf2 {[%clk 0:00:34]}  a5 {[%clk 0:01:11]} 40. Re2 {[%clk 0:00:21]}  a4 {[%clk 0:01:09]} 41. Kg3 {[%clk 0:00:21]}  Kf7 {[%clk 0:01:02]} 42. Kf2 {[%clk 0:00:20]}  Kf6 {[%clk 0:01:01]} 43. Kg3 {[%clk 0:00:20]} 1/2-1/2


[Site "https://www.chess.com"]

[Event "Titled Tuesday Blitz June 20 Early 2023"]
[White "Souleidis, Georgios"]
[Black "Savitha Shri B"]
[WhiteFideId "4206827"]
[BlackFideId "35061887"]
[WhiteElo "2401"]
[BlackElo "2172"]
[Result "1-0"]
[Round "6"]
[TimeControl "180+2"]
[Date "2023.06.20"]
[WhiteClock "0:00:30"]
[BlackClock "0:00:18"]
[Board "86"]

1. e4 {[%clk 0:03:00]}  c5 {[%clk 0:01:13]} 2. Be2 {[%clk 0:02:57]}  d6 {[%clk 0:01:14]} 3. d3 {[%clk 0:02:57]}  e6 {[%clk 0:01:14]} 4. f4 {[%clk 0:02:58]}  Nf6 {[%clk 0:01:13]} 5. Nf3 {[%clk 0:02:58]}  Be7 {[%clk 0:01:14]} 6. O-O {[%clk 0:02:58]}  Nc6 {[%clk 0:01:14]} 7. c3 {[%clk 0:02:59]}  a6 {[%clk 0:01:14]} 8. Kh1 {[%clk 0:02:55]}  O-O {[%clk 0:01:14]} 9. Be3 {[%clk 0:02:55]}  b5 {[%clk 0:01:14]} 10. a3 {[%clk 0:02:56]}  Bb7 {[%clk 0:01:14]} 11. Nbd2 {[%clk 0:02:55]}  Rc8 {[%clk 0:01:14]} 12. Rc1 {[%clk 0:02:55]}  Qc7 {[%clk 0:01:13]} 13. d4 {[%clk 0:02:52]}  cxd4 {[%clk 0:01:13]} 14. cxd4 {[%clk 0:02:52]}  Qb8 {[%clk 0:01:13]} 15. Bd3 {[%clk 0:02:51]}  e5 {[%clk 0:01:06]} 16. fxe5 {[%clk 0:02:49]}  dxe5 {[%clk 0:01:06]} 17. d5 {[%clk 0:02:49]}  Nd8 {[%clk 0:01:07]} 18. b4 {[%clk 0:02:30]}  Ng4 {[%clk 0:00:56]} 19. Bg1 {[%clk 0:02:30]}  Qd6 {[%clk 0:00:48]} 20. Nb3 {[%clk 0:02:18]}  Qh6 {[%clk 0:00:41]} 21. Nc5 {[%clk 0:02:01]}  Ba8 {[%clk 0:00:38]} 22. Nd7 {[%clk 0:01:42]}  Rxc1 {[%clk 0:00:29]} 23. Qxc1 {[%clk 0:01:42]}  Re8 {[%clk 0:00:29]} 24. Qxh6 {[%clk 0:01:40]}  gxh6 {[%clk 0:00:29]} 25. h3 {[%clk 0:01:35]}  Nf6 {[%clk 0:00:25]} 26. Nfxe5 {[%clk 0:01:15]}  Nh5 {[%clk 0:00:25]} 27. Bh2 {[%clk 0:01:00]}  Bd6 {[%clk 0:00:26]} 28. Ng4 {[%clk 0:00:53]}  Bxh2 {[%clk 0:00:26]} 29. Ngf6+ {[%clk 0:00:44]}  Nxf6 {[%clk 0:00:19]} 30. Nxf6+ {[%clk 0:00:44]}  Kf8 {[%clk 0:00:18]} 31. Nxe8 {[%clk 0:00:38]}  Be5 {[%clk 0:00:19]} 32. Nf6 {[%clk 0:00:37]}  Bb2 {[%clk 0:00:19]} 33. Nd7+ {[%clk 0:00:34]}  Ke7 {[%clk 0:00:19]} 34. Nc5 {[%clk 0:00:34]}  Bxa3 {[%clk 0:00:20]} 35. Nxa6 {[%clk 0:00:34]}  Bb7 {[%clk 0:00:19]} 36. Nc5 {[%clk 0:00:33]}  Bc8 {[%clk 0:00:20]} 37. Rb1 {[%clk 0:00:32]}  Nb7 {[%clk 0:00:18]} 38. Nxb7 {[%clk 0:00:30]} 1-0


[Site "https://www.chess.com"]

[Event "Titled Tuesday Blitz June 20 Early 2023"]
[White "Bogaudinov, Rushan"]
[Black "Jakubowski, Krzysztof"]
[WhiteFideId "4129288"]
[BlackFideId "1112848"]
[WhiteElo "1967"]
[BlackElo "2359"]
[Result "1-0"]
[Round "6"]
[TimeControl "180+2"]
[Date "2023.06.20"]
[WhiteClock "0:00:10"]
[BlackClock "0:00:00"]
[Board "90"]

1. d4 {[%clk 0:02:56]}  d5 {[%clk 0:02:57]} 2. g3 {[%clk 0:02:56]}  c6 {[%clk 0:02:56]} 3. Bg2 {[%clk 0:02:57]}  Bf5 {[%clk 0:02:55]} 4. Nf3 {[%clk 0:02:56]}  e6 {[%clk 0:02:55]} 5. Nh4 {[%clk 0:02:56]}  Bg4 {[%clk 0:02:54]} 6. c4 {[%clk 0:02:53]}  Be7 {[%clk 0:02:51]} 7. Nf3 {[%clk 0:02:53]}  Nd7 {[%clk 0:02:50]} 8. Nc3 {[%clk 0:02:50]}  Ngf6 {[%clk 0:02:49]} 9. O-O {[%clk 0:02:46]}  dxc4 {[%clk 0:02:45]} 10. Nd2 {[%clk 0:02:40]}  Nb6 {[%clk 0:02:41]} 11. a4 {[%clk 0:02:39]}  a5 {[%clk 0:02:40]} 12. h3 {[%clk 0:02:32]}  Bh5 {[%clk 0:02:40]} 13. g4 {[%clk 0:02:32]}  Bg6 {[%clk 0:02:39]} 14. Nf3 {[%clk 0:02:30]}  Nfd5 {[%clk 0:02:36]} 15. Re1 {[%clk 0:02:26]}  Nxc3 {[%clk 0:02:20]} 16. bxc3 {[%clk 0:02:26]}  Be4 {[%clk 0:02:19]} 17. Bd2 {[%clk 0:02:09]}  h5 {[%clk 0:02:13]} 18. g5 {[%clk 0:02:08]}  Bxf3 {[%clk 0:02:12]} 19. Bxf3 {[%clk 0:02:08]}  Bxg5 {[%clk 0:02:11]} 20. Bg2 {[%clk 0:02:02]}  Nd5 {[%clk 0:02:03]} 21. e3 {[%clk 0:01:58]}  Rb8 {[%clk 0:01:34]} 22. f4 {[%clk 0:01:53]}  Bh4 {[%clk 0:01:33]} 23. Rf1 {[%clk 0:01:53]}  f5 {[%clk 0:01:29]} 24. Qe2 {[%clk 0:01:44]}  Qd6 {[%clk 0:00:58]} 25. Qxc4 {[%clk 0:01:41]}  g5 {[%clk 0:00:57]} 26. e4 {[%clk 0:01:35]}  fxe4 {[%clk 0:00:56]} 27. Bxe4 {[%clk 0:01:27]}  gxf4 {[%clk 0:00:55]} 28. Kh1 {[%clk 0:01:22]}  Bg3 {[%clk 0:00:50]} 29. Qe2 {[%clk 0:01:14]}  Nf6 {[%clk 0:00:43]} 30. Bg2 {[%clk 0:01:12]}  Rf8 {[%clk 0:00:26]} 31. c4 {[%clk 0:01:05]}  Kd7 {[%clk 0:00:25]} 32. Bxa5 {[%clk 0:01:02]}  Ng4 {[%clk 0:00:15]} 33. Rab1 {[%clk 0:00:50]}  Ne3 {[%clk 0:00:14]} 34. Bb4 {[%clk 0:00:47]}  Qc7 {[%clk 0:00:10]} 35. Bxf8 {[%clk 0:00:43]}  Rxf8 {[%clk 0:00:09]} 36. Rf3 {[%clk 0:00:39]}  Nxg2 {[%clk 0:00:08]} 37. Kxg2 {[%clk 0:00:40]}  Rf6 {[%clk 0:00:07]} 38. Qe5 {[%clk 0:00:37]}  Qxe5 {[%clk 0:00:07]} 39. dxe5 {[%clk 0:00:37]}  Rf5 {[%clk 0:00:07]} 40. Rxb7+ {[%clk 0:00:31]}  Kc8 {[%clk 0:00:08]} 41. Rfb3 {[%clk 0:00:29]}  Rxe5 {[%clk 0:00:08]} 42. Ra7 {[%clk 0:00:23]}  Rc5 {[%clk 0:00:07]} 43. Rc3 {[%clk 0:00:21]}  e5 {[%clk 0:00:07]} 44. Kf3 {[%clk 0:00:21]}  Kb8 {[%clk 0:00:06]} 45. Rh7 {[%clk 0:00:20]}  Ra5 {[%clk 0:00:07]} 46. Rb3+ {[%clk 0:00:20]}  Kc8 {[%clk 0:00:06]} 47. Rbb7 {[%clk 0:00:17]}  Rxa4 {[%clk 0:00:04]} 48. Rbg7 {[%clk 0:00:16]}  Ra3+ {[%clk 0:00:04]} 49. Ke4 {[%clk 0:00:17]}  Re3+ {[%clk 0:00:04]} 50. Kf5 {[%clk 0:00:17]}  Rd3 {[%clk 0:00:04]} 51. Rc7+ {[%clk 0:00:15]}  Kb8 {[%clk 0:00:04]} 52. Rb7+ {[%clk 0:00:16]}  Ka8 {[%clk 0:00:05]} 53. Ra7+ {[%clk 0:00:16]}  Kb8 {[%clk 0:00:05]} 54. Rab7+ {[%clk 0:00:14]}  Ka8 {[%clk 0:00:06]} 55. Ra7+ {[%clk 0:00:12]}  Kb8 {[%clk 0:00:05]} 56. Ke4 {[%clk 0:00:10]}  Rd4+ {[%clk 0:00:05]} 57. Kxe5 {[%clk 0:00:10]}  Rxc4 {[%clk 0:00:04]} 58. Rab7+ {[%clk 0:00:09]}  Ka8 {[%clk 0:00:05]} 59. Rbg7 {[%clk 0:00:09]}  f3+ {[%clk 0:00:04]} 60. Rxg3 {[%clk 0:00:09]}  f2 {[%clk 0:00:04]} 61. Rf7 {[%clk 0:00:08]}  Rc5+ {[%clk 0:00:03]} 62. Kd6 {[%clk 0:00:08]}  Rd5+ {[%clk 0:00:03]} 63. Kxc6 {[%clk 0:00:08]}  Rg5 {[%clk 0:00:02]} 64. Rxg5 {[%clk 0:00:08]}  f1=Q {[%clk 0:00:02]} 65. Rxf1 {[%clk 0:00:08]}  Ka7 {[%clk 0:00:01]} 66. Rf7+ {[%clk 0:00:09]}  Ka6 {[%clk 0:00:01]} 67. Rgf5 {[%clk 0:00:09]}  h4 {[%clk 0:00:01]} 68. R7f6 {[%clk 0:00:10]}  Ka7 {[%clk 0:00:00]} 69. Ra5+ {[%clk 0:00:10]} 1-0


[Site "https://www.chess.com"]

[Event "Titled Tuesday Blitz June 20 Early 2023"]
[White "Ahmad, Khagan"]
[Black "Alahakoon, Isuru"]
[WhiteFideId "13431552"]
[BlackFideId "9900993"]
[WhiteElo "2209"]
[BlackElo "1819"]
[Result "1-0"]
[Round "6"]
[TimeControl "180+2"]
[Date "2023.06.20"]
[WhiteClock "0:00:59"]
[BlackClock "0:00:36"]
[Board "91"]

1. e4 {[%clk 0:03:00]}  d5 {[%clk 0:02:59]} 2. exd5 {[%clk 0:02:56]}  Qxd5 {[%clk 0:03:00]} 3. Nc3 {[%clk 0:02:57]}  Qa5 {[%clk 0:03:00]} 4. d4 {[%clk 0:02:57]}  Nf6 {[%clk 0:03:01]} 5. Bc4 {[%clk 0:02:50]}  Bg4 {[%clk 0:03:01]} 6. Nf3 {[%clk 0:02:49]}  Nc6 {[%clk 0:03:00]} 7. Be3 {[%clk 0:02:48]}  O-O-O {[%clk 0:02:59]} 8. h3 {[%clk 0:02:02]}  Bh5 {[%clk 0:02:57]} 9. g4 {[%clk 0:02:01]}  Bg6 {[%clk 0:02:56]} 10. Qe2 {[%clk 0:01:59]}  e5 {[%clk 0:02:53]} 11. O-O-O {[%clk 0:01:50]}  Bb4 {[%clk 0:02:45]} 12. dxe5 {[%clk 0:01:35]}  Bxc3 {[%clk 0:02:40]} 13. exf6 {[%clk 0:01:34]}  Bxf6 {[%clk 0:02:34]} 14. g5 {[%clk 0:01:26]}  Be7 {[%clk 0:02:22]} 15. Nh4 {[%clk 0:01:24]}  Bxg5 {[%clk 0:01:53]} 16. Qg4+ {[%clk 0:01:20]}  f5 {[%clk 0:01:33]} 17. Qxg5 {[%clk 0:01:19]}  Ne5 {[%clk 0:01:26]} 18. Bb3 {[%clk 0:01:09]}  h6 {[%clk 0:01:03]} 19. Rxd8+ {[%clk 0:01:00]}  Rxd8 {[%clk 0:00:36]} 20. Be6+ {[%clk 0:00:59]} 1-0


[Site "https://www.chess.com"]

[Event "Titled Tuesday Blitz June 20 Early 2023"]
[White "Kumsiashvili, Nikoloz"]
[Black "Pavlidou, Ekaterini"]
[WhiteFideId "13600621"]
[BlackFideId "4213262"]
[WhiteElo "2299"]
[BlackElo "2126"]
[Result "1-0"]
[Round "6"]
[TimeControl "180+2"]
[Date "2023.06.20"]
[WhiteClock "0:00:10"]
[BlackClock "0:00:00"]
[Board "92"]

1. c4 {[%clk 0:03:00]}  e5 {[%clk 0:02:59]} 2. d3 {[%clk 0:03:00]}  Nc6 {[%clk 0:02:59]} 3. Nf3 {[%clk 0:03:00]}  g6 {[%clk 0:02:59]} 4. Nc3 {[%clk 0:02:59]}  Bg7 {[%clk 0:03:00]} 5. e3 {[%clk 0:02:54]}  d6 {[%clk 0:02:58]} 6. Be2 {[%clk 0:02:54]}  Nge7 {[%clk 0:02:58]} 7. O-O {[%clk 0:02:54]}  O-O {[%clk 0:02:58]} 8. Rb1 {[%clk 0:02:55]}  a5 {[%clk 0:02:58]} 9. a3 {[%clk 0:02:55]}  h6 {[%clk 0:02:57]} 10. b4 {[%clk 0:02:54]}  axb4 {[%clk 0:02:58]} 11. axb4 {[%clk 0:02:55]}  Be6 {[%clk 0:02:58]} 12. d4 {[%clk 0:02:47]}  exd4 {[%clk 0:02:55]} 13. exd4 {[%clk 0:02:40]}  d5 {[%clk 0:02:55]} 14. b5 {[%clk 0:02:34]}  Na5 {[%clk 0:02:52]} 15. c5 {[%clk 0:02:33]}  Nc4 {[%clk 0:02:39]} 16. Qb3 {[%clk 0:02:13]}  c6 {[%clk 0:02:33]} 17. Rd1 {[%clk 0:02:11]}  g5 {[%clk 0:01:54]} 18. Na4 {[%clk 0:01:37]}  Bf5 {[%clk 0:01:32]} 19. Bd3 {[%clk 0:01:26]}  g4 {[%clk 0:01:32]} 20. Ne1 {[%clk 0:01:09]}  Bxd4 {[%clk 0:01:04]} 21. Bxh6 {[%clk 0:01:04]}  Re8 {[%clk 0:00:57]} 22. Nc2 {[%clk 0:00:54]}  Bxd3 {[%clk 0:00:40]} 23. Rxd3 {[%clk 0:00:39]}  Nf5 {[%clk 0:00:40]} 24. Nxd4 {[%clk 0:00:33]}  Nxd4 {[%clk 0:00:30]} 25. Rxd4 {[%clk 0:00:30]}  f5 {[%clk 0:00:27]} 26. Bf4 {[%clk 0:00:26]}  Qa5 {[%clk 0:00:21]} 27. Nc3 {[%clk 0:00:23]}  Qa3 {[%clk 0:00:12]} 28. Rdd1 {[%clk 0:00:15]}  Qxc5 {[%clk 0:00:11]} 29. bxc6 {[%clk 0:00:14]}  Ra3 {[%clk 0:00:10]} 30. Qb4 {[%clk 0:00:12]}  Qxb4 {[%clk 0:00:10]} 31. Rxb4 {[%clk 0:00:13]}  bxc6 {[%clk 0:00:09]} 32. Nb1 {[%clk 0:00:11]}  Ra2 {[%clk 0:00:09]} 33. Nc3 {[%clk 0:00:11]}  Rc2 {[%clk 0:00:08]} 34. Na4 {[%clk 0:00:10]}  Ree2 {[%clk 0:00:08]} 35. Rf1 {[%clk 0:00:10]}  Kf7 {[%clk 0:00:06]} 36. g3 {[%clk 0:00:10]}  Ke6 {[%clk 0:00:04]} 37. Nc5+ {[%clk 0:00:10]}  Ke7 {[%clk 0:00:00]} 38. Nd3 {[%clk 0:00:10]} 1-0


[Site "https://www.chess.com"]

[Event "Titled Tuesday Blitz June 20 Early 2023"]
[White "Bueno, Alfeu Junior Varela"]
[Black "Zavgorodniy, Sergiy"]
[WhiteFideId "2108879"]
[BlackFideId "14110148"]
[WhiteElo "2175"]
[BlackElo "2402"]
[Result "0-1"]
[Round "6"]
[TimeControl "180+2"]
[Date "2023.06.20"]
[WhiteClock "0:00:00"]
[BlackClock "0:00:51"]
[Board "94"]

1. e4 {[%clk 0:03:00]}  c6 {[%clk 0:02:59]} 2. d4 {[%clk 0:03:00]}  d5 {[%clk 0:03:00]} 3. f3 {[%clk 0:03:01]}  dxe4 {[%clk 0:03:00]} 4. fxe4 {[%clk 0:03:02]}  e5 {[%clk 0:03:00]} 5. Nf3 {[%clk 0:03:02]}  Bg4 {[%clk 0:02:58]} 6. Bc4 {[%clk 0:03:02]}  Nd7 {[%clk 0:02:58]} 7. c3 {[%clk 0:03:01]}  b5 {[%clk 0:02:55]} 8. Bb3 {[%clk 0:03:00]}  Ngf6 {[%clk 0:02:51]} 9. O-O {[%clk 0:02:25]}  Bd6 {[%clk 0:02:51]} 10. Bg5 {[%clk 0:02:25]}  Qc7 {[%clk 0:02:50]} 11. h3 {[%clk 0:02:12]}  Bh5 {[%clk 0:02:46]} 12. Nbd2 {[%clk 0:02:12]}  O-O {[%clk 0:02:46]} 13. Qe1 {[%clk 0:02:11]}  Rae8 {[%clk 0:02:44]} 14. Qh4 {[%clk 0:02:11]}  exd4 {[%clk 0:02:44]} 15. cxd4 {[%clk 0:02:04]}  Bg3 {[%clk 0:02:43]} 16. Bxf6 {[%clk 0:01:44]}  Bxh4 {[%clk 0:02:42]} 17. Bxh4 {[%clk 0:01:45]}  Bxf3 {[%clk 0:02:34]} 18. Rxf3 {[%clk 0:01:43]}  c5 {[%clk 0:02:32]} 19. dxc5 {[%clk 0:01:11]}  Nxc5 {[%clk 0:02:29]} 20. Bd5 {[%clk 0:01:11]}  Ne6 {[%clk 0:02:20]} 21. Raf1 {[%clk 0:01:07]}  Qc2 {[%clk 0:02:15]} 22. R3f2 {[%clk 0:00:51]}  Qxb2 {[%clk 0:02:11]} 23. Nf3 {[%clk 0:00:51]}  Qc3 {[%clk 0:02:08]} 24. Nd2 {[%clk 0:00:36]}  a5 {[%clk 0:02:02]} 25. Kh1 {[%clk 0:00:30]}  a4 {[%clk 0:02:02]} 26. Nf3 {[%clk 0:00:27]}  b4 {[%clk 0:01:59]} 27. Bg3 {[%clk 0:00:27]}  Nc7 {[%clk 0:01:47]} 28. Bb7 {[%clk 0:00:21]}  Rb8 {[%clk 0:01:28]} 29. Be5 {[%clk 0:00:21]}  Qc4 {[%clk 0:01:18]} 30. Nd2 {[%clk 0:00:16]}  Qc5 {[%clk 0:01:14]} 31. Bd5 {[%clk 0:00:16]}  Nxd5 {[%clk 0:01:10]} 32. exd5 {[%clk 0:00:13]}  Rbd8 {[%clk 0:01:07]} 33. Ne4 {[%clk 0:00:03]}  Qxd5 {[%clk 0:01:05]} 34. Nf6+ {[%clk 0:00:02]}  gxf6 {[%clk 0:01:04]} 35. Bxf6 {[%clk 0:00:02]}  h6 {[%clk 0:01:02]} 36. Rf5 {[%clk 0:00:01]}  Qc6 {[%clk 0:00:55]} 37. R1f3 {[%clk 0:00:00]}  Kh7 {[%clk 0:00:51]} 0-1


[Site "https://www.chess.com"]